bitfinex/quotes_SOLUSD_20241121
["timestamp","ask_amount","ask_price","bid_price","bid_amount"]
[1732173731502,23.86575031,240.44,240.37,23.86575031]
[1732173731706,0.5,240.57,240.37,23.86575031]
[1732173731707,23.86575031,240.45,240.38,23.86575031]
[1732173733019,23.86575031,240.45,240.36,23.86575031]
[1732173733320,23.86575031,240.45,240.37,1.66072673]
[1732173733615,23.86575031,240.45,240.38,1.66072673]
[1732173733923,23.86575031,240.45,240.36,23.86575031]
[1732173734108,23.86575031,240.45,240.37,1.6607338]
[1732173734424,23.86575031,240.45,240.38,1.6607338]
[1732173734626,23.86575031,240.45,240.36,23.86575031]
[1732173734803,23.86575031,240.45,240.37,1.66072403]
[1732173735004,23.86575031,240.45,240.38,1.66072403]
[1732173735214,23.86575031,240.45,240.37,161.0]
[1732173735420,23.86575031,240.45,240.38,25.52648379]
[1732173735726,23.86575031,240.45,240.38,23.86575031]
[1732173737125,23.86575031,240.45,240.39,1.66072824]
[1732173737505,23.86575031,240.45,240.38,23.86575031]
[1732173737728,23.86575031,240.45,240.37,161.0]
[1732173738024,23.86575031,240.45,240.36,184.86575031]
[1732173738218,23.86575031,240.45,240.37,1.66085015]
[1732173738525,32.58275031,240.45,240.36,184.86575031]
[1732173738726,32.58275031,240.45,240.37,1.66085079]
[1732173738908,32.58275031,240.45,240.36,184.86575031]
[1732173739225,32.58275031,240.45,240.37,1.66085079]
[1732173739526,32.58275031,240.45,240.36,184.86575031]
[1732173742311,23.86575031,240.43,240.36,184.86575031]
[1732173743405,32.58275031,240.45,240.36,184.86575031]
[1732173743597,32.58275031,240.45,240.38,23.86575031]
[1732173744518,32.58275031,240.45,240.37,23.86575031]
[1732173744707,23.64087323,240.45,240.37,14.92387323]
[1732173745628,14.92387323,240.43,240.36,175.92387323]
[1732173745817,14.92387323,240.44,240.37,14.92387323]
[1732173746013,23.64087323,240.45,240.38,14.92387323]
[1732173746904,8.717,240.45,240.39,14.92387323]
[1732173747109,14.92387323,240.48,240.41,14.92387323]
[1732173747307,36.19807323,240.49,240.43,14.92387323]
[1732173747800,36.19807323,240.49,240.42,14.92387323]
[1732173748804,14.92387323,240.48,240.41,14.92387323]
[1732173749021,21.2742,240.49,240.39,14.92387323]
[1732173749022,14.92387323,240.46,240.39,14.92387323]
[1732173749611,14.92387323,240.47,240.39,14.92387323]
[1732173749809,14.92387323,240.47,240.4,14.92387323]
[1732173751432,14.92387323,240.48,240.41,14.92387323]
[1732173752118,14.92387323,240.47,240.4,14.92387323]
[1732173752627,14.92387323,240.47,240.4,175.92387323]
[1732173752824,14.92387323,240.47,240.4,161.0]
[1732173753007,14.92387323,240.46,240.4,161.0]
[1732173753316,14.92387323,240.48,240.41,14.92387323]
[1732173753518,21.2742,240.49,240.44,14.92387323]
[1732173754027,21.2742,240.49,240.45,14.92387323]
[1732173754203,21.2742,240.49,240.44,14.92387323]
[1732173755007,21.2742,240.49,240.43,14.92387323]
[1732173755419,21.2742,240.49,240.45,14.92387323]
[1732173755614,21.2742,240.49,240.44,14.92387323]
[1732173755819,21.2742,240.49,240.45,14.92387323]
[1732173756315,21.2742,240.49,240.44,14.92387323]
[1732173758818,21.2742,240.49,240.43,14.92387323]
[1732173759129,36.19807323,240.49,240.43,161.0]
[1732173759352,21.2742,240.49,240.43,161.0]
[1732173761732,21.2742,240.49,240.43,175.92387323]
[1732173762121,21.2742,240.49,240.43,14.92387323]
[1732173762921,31.8124,240.58,240.48,14.92387323]
[1732173763120,31.8124,240.58,240.52,14.92387323]
[1732173763631,31.8124,240.58,240.49,6.85865973]
[1732173763632,46.73627323,240.58,240.51,14.92387323]
[1732173764364,14.92387323,240.57,240.5,14.92387323]
[1732173764910,31.8124,240.58,240.51,14.92387323]
[1732173765112,14.92387323,240.56,240.49,21.15901285]
[1732173766037,14.92387323,240.57,240.5,14.92387323]
[1732173766712,15.0,240.6,240.53,14.92387323]
[1732173766932,15.0,240.6,240.53,175.92387323]
[1732173768940,14.92387323,240.57,240.51,161.0]
[1732173769236,14.92387323,240.55,240.51,161.0]
[1732173769538,14.92387323,240.55,240.47,175.92387323]
[1732173769724,14.92387323,240.55,240.48,1.66011183]
[1732173769917,14.92387323,240.55,240.49,1.66011183]
[1732173770120,14.92387323,240.55,240.47,175.92387323]
[1732173770333,15.0,240.6,240.47,175.92387323]
[1732173770334,15.0,240.6,240.47,161.0]
[1732173770648,15.0,240.6,240.57,14.92387323]
[1732173770817,15.0,240.6,240.58,6.23513962]
[1732173772119,15.0,240.6,240.53,14.92387323]
[1732173772433,14.92387323,240.57,240.49,14.92387323]
[1732173772641,14.92387323,240.57,240.49,175.92387323]
[1732173773138,14.92387323,240.55,240.49,175.92387323]
[1732173773341,14.92387323,240.55,240.49,14.92387323]
[1732173773518,14.92387323,240.57,240.49,14.92387323]
[1732173774525,14.92387323,240.55,240.47,14.92387323]
[1732173776035,14.92387323,240.53,240.45,14.92387323]
[1732173776424,14.92387323,240.53,240.45,175.92387323]
[1732173778824,14.92387323,240.46,240.38,161.0]
[1732173779224,14.92387323,240.46,240.39,14.92387323]
[1732173779438,14.92387323,240.48,240.39,14.92387323]
[1732173780026,14.92387323,240.5,240.41,14.92387323]
[1732173780429,14.92387323,240.5,240.43,14.92387323]
[1732173781137,47.81377323,240.52,240.45,14.92387323]
[1732173781341,24.36117323,240.52,240.45,14.92387323]
[1732173781555,30.42387323,240.6,240.43,161.0]
[1732173781556,14.92387323,240.56,240.48,14.92387323]
[1732173781925,14.92387323,240.54,240.48,14.92387323]
[1732173782440,22.8494,240.57,240.44,161.0]
[1732173782441,14.92387323,240.5,240.44,161.0]
[1732173782628,22.8494,240.57,240.42,161.0]
[1732173782629,14.92387323,240.48,240.42,161.0]
[1732173786880,14.92387323,240.5,240.42,175.92387323]
[1732173787156,14.92387323,240.5,240.44,14.92387323]
[1732173788052,14.92387323,240.51,240.43,14.92387323]
[1732173788629,14.92387323,240.5,240.42,175.92387323]
[1732173789125,27.5062,240.57,240.4,14.92387323]
[1732173789126,14.92387323,240.48,240.4,14.92387323]
[1732173790049,14.92387323,240.46,240.38,14.92387323]
[1732173790239,14.92387323,240.46,240.38,175.92387323]
[1732173791950,14.92387323,240.47,240.39,14.92387323]
[1732173792462,22.8494,240.57,240.46,14.92387323]
[1732173792762,22.8494,240.57,240.48,14.92387323]
[1732173792763,14.92387323,240.55,240.48,14.92387323]
[1732173793146,22.8494,240.57,240.48,14.92387323]
[1732173793447,14.92387323,240.55,240.48,14.92387323]
[1732173794537,14.92387323,240.54,240.47,14.92387323]
[1732173795854,14.92387323,240.53,240.46,20.1938575]
[1732173800063,14.92387323,240.52,240.46,5.26998427]
[1732173800961,14.92387323,240.51,240.45,161.0]
[1732173801163,14.92387323,240.5,240.45,161.0]
[1732173801663,14.92387323,240.47,240.45,161.0]
[1732173801889,14.92387323,240.47,240.4,5.26998427]
[1732173802160,14.92387323,240.48,240.41,14.92387323]
[1732173802752,14.92387323,240.51,240.44,14.92387323]
[1732173803775,14.92387323,240.5,240.43,14.92387323]
[1732173804460,14.92387323,240.52,240.44,14.92387323]
[1732173805566,14.92387323,240.51,240.44,14.92387323]
[1732173807455,14.92387323,240.52,240.44,14.92387323]
[1732173812964,22.8494,240.57,240.44,14.92387323]
[1732173813155,14.92387323,240.52,240.44,14.92387323]
[1732173814658,9.54546426,240.52,240.44,9.54546426]
[1732173816362,22.8494,240.57,240.48,9.54546426]
[1732173816579,9.54546426,240.56,240.48,9.54546426]
[1732173816754,9.54546426,240.55,240.47,9.54546426]
[1732173817078,9.54546426,240.54,240.47,9.54546426]
[1732173819170,9.54546426,240.52,240.45,161.0]
[1732173819392,22.8494,240.57,240.44,170.54546426]
[1732173819577,9.54546426,240.55,240.46,9.54546426]
[1732173820961,9.54546426,240.54,240.46,9.54546426]
[1732173821554,9.54546426,240.56,240.48,9.54546426]
[1732173821772,9.54546426,240.55,240.47,20.83270533]
[1732173822854,9.54546426,240.54,240.47,11.28724107]
[1732173823071,9.54546426,240.54,240.47,5.26998427]
[1732173824652,22.8494,240.57,240.47,5.26998427]
[1732173824856,9.54546426,240.54,240.47,5.26998427]
[1732173825474,3.98677126,240.54,240.47,5.26998427]
[1732173825873,22.8494,240.57,240.47,5.26998427]
[1732173826054,9.54546426,240.54,240.47,5.26998427]
[1732173827355,9.54546426,240.56,240.49,9.54546426]
[1732173827560,9.54546426,240.56,240.5,5.26998427]
[1732173829776,9.54546426,240.55,240.5,5.26998427]
[1732173829976,9.54546426,240.55,240.48,161.0]
[1732173830281,9.54546426,240.54,240.48,161.0]
[1732173830580,9.54546426,240.52,240.48,161.0]
[1732173831180,9.54546426,240.52,240.45,161.0]
[1732173832086,9.54546426,240.5,240.45,161.0]
[1732173832378,9.54546426,240.5,240.44,5.26998427]
[1732173832779,22.8494,240.57,240.44,5.26998427]
[1732173832780,9.54546426,240.48,240.44,5.26998427]
[1732173833159,23.776884,240.56,240.44,5.26998427]
[1732173833360,9.54546426,240.5,240.44,5.26998427]
[1732173833567,23.776884,240.56,240.44,5.26998427]
[1732173833568,9.54546426,240.49,240.44,5.26998427]
[1732173834885,9.54546426,240.48,240.44,5.26998427]
[1732173835775,23.776884,240.56,240.44,5.26998427]
[1732173835981,9.54546426,240.49,240.44,11.28724107]
[1732173837276,159.33671814,240.83,240.45,2.634]
[1732173837477,23.10514239,241.54,241.37,0.5]
[1732173837661,9.54546426,241.52,241.39,23.776884]
[1732173837972,0.5,241.54,241.41,20.16994464]
[1732173838186,0.5,241.51,241.43,20.53676078]
[1732173838361,137.86334946,241.66,241.45,20.88353637]
[1732173838558,134.59814454,241.66,241.47,20.41820276]
[1732173838767,10.3452,241.66,241.48,20.0628714]
[1732173838963,10.3452,241.66,241.49,39.7416336]
[1732173839171,4.1377,241.68,241.5,101.58884907]
[1732173839385,23.69575159,241.54,241.52,0.5]
[1732173839564,21.77064629,241.68,241.53,107.21130944]
[1732173839760,21.77064629,241.68,241.54,53.41382625]
[1732173839964,47.39150318,241.56,241.55,19.67877808]
[1732173840188,21.77064629,241.68,241.54,33.73504817]
[1732173840365,21.77064629,241.68,241.55,44.98006423]
[1732173840561,21.77064629,241.68,241.56,50.6386262]
[1732173840791,21.77064629,241.68,241.56,19.32046103]
[1732173841168,47.39150318,241.57,241.56,19.32046103]
[1732173841777,4.1393,241.59,241.42,6.213]
[1732173842189,24.19882986,241.44,241.42,6.213]
[1732173842398,24.19882986,241.44,241.43,56.50159906]
[1732173842569,47.97571386,241.44,241.43,56.50159906]
[1732173843270,47.97571386,241.44,241.43,56.38499462]
[1732173843696,47.97571386,241.44,241.43,203.19654709]
[1732173844275,24.19882986,241.44,241.43,203.19654709]
[1732173844480,24.19882986,241.46,241.43,203.19654709]
[1732173844995,24.19882986,241.44,241.43,203.19654709]
[1732173845879,24.19882986,241.44,241.43,179.53654709]
[1732173846381,24.19882986,241.44,241.29,2.4865]
[1732173846590,24.19882986,241.41,241.29,2.4865]
[1732173847294,24.19882986,241.43,241.32,24.69882986]
[1732173847475,24.19882986,241.43,241.32,24.19882986]
[1732173848584,24.19882986,241.43,241.3,24.69882986]
[1732173848874,24.19882986,241.43,241.32,24.19882986]
[1732173849406,24.19882986,241.43,241.3,24.69882986]
[1732173849775,24.19882986,241.43,241.3,24.19882986]
[1732173849980,24.19882986,241.41,241.29,6.2165]
[1732173850300,24.19882986,241.41,241.3,24.19882986]
[1732173850477,24.19882986,241.45,241.35,24.19882986]
[1732173850681,24.19882986,241.47,241.37,24.19882986]
[1732173851090,24.19882986,241.45,241.37,24.19882986]
[1732173851294,24.19882986,241.43,241.35,24.19882986]
[1732173852182,24.19882986,241.43,241.33,24.19882986]
[1732173852989,24.19882986,241.45,241.33,24.19882986]
[1732173853279,24.19882986,241.45,241.35,24.19882986]
[1732173853503,24.19882986,241.45,241.33,27.18502986]
[1732173854507,24.19882986,241.41,241.3,26.68522986]
[1732173854685,24.19882986,241.41,241.32,24.19882986]
[1732173855795,23.776884,241.45,241.31,24.20895281]
[1732173856704,23.776884,241.45,241.25,24.20895281]
[1732173857201,23.776884,241.45,241.27,24.20895281]
[1732173857381,23.776884,241.45,241.29,24.20895281]
[1732173857783,23.776884,241.43,241.29,24.20895281]
[1732173858095,23.776884,241.43,241.27,24.20895281]
[1732173858899,4.1421,241.42,241.29,24.20895281]
[1732173859203,4.1421,241.42,241.31,24.20895281]
[1732173860100,4.1421,241.42,241.27,26.69575281]
[1732173861592,23.776884,241.41,241.25,30.42655281]
[1732173861898,23.776884,241.41,241.25,30.92655281]
[1732173862308,23.776884,241.41,241.27,24.20895281]
[1732173863208,10.3536,241.47,241.25,32.91355281]
[1732173863209,23.776884,241.39,241.25,32.91355281]
[1732173863583,23.776884,241.39,241.23,24.20895281]
[1732173863782,23.776884,241.39,241.23,24.70895281]
[1732173864509,23.776884,241.39,241.25,24.20895281]
[1732173864885,4.1428,241.38,241.25,24.20895281]
[1732173865186,4.1428,241.38,241.23,27.19615281]
[1732173865491,23.776884,241.37,241.23,24.70895281]
[1732173866909,4.1431,241.36,241.23,24.20895281]
[1732173867917,4.1431,241.36,241.22,2.4872]
[1732173870315,4.1431,241.36,241.22,2.9872]
[1732173871114,4.1431,241.36,241.28,24.20895281]
[1732173871728,4.1431,241.36,241.27,24.20895281]
[1732173871901,10.3556,241.42,241.28,2.4867]
[1732173872523,23.776884,241.41,241.28,2.4867]
[1732173872913,10.3556,241.42,241.28,2.4867]
[1732173873318,21.4617,241.5,241.35,0.5]
[1732173873319,2.4867,241.46,241.35,0.5]
[1732173873617,4.1409,241.49,241.32,24.70895281]
[1732173873818,4.1409,241.49,241.32,0.5]
[1732173874207,4.1409,241.49,241.3,25.20895281]
[1732173874402,14.4932,241.49,241.3,25.20895281]
[1732173874611,14.4932,241.49,241.3,1.0]
[1732173875618,23.776884,241.46,241.3,3.4864]
[1732173875816,23.776884,241.46,241.28,6.7168]
[1732173876126,23.776884,241.46,241.28,9.2035]
[1732173877617,23.776884,241.43,241.28,9.2035]
[1732173878925,4.1421,241.42,241.28,9.2035]
[1732173879138,23.776884,241.41,241.28,8.7035]
[1732173879805,23.776884,241.41,241.27,0.5]
[1732173880424,2.4869,241.4,241.26,33.41315281]
[1732173880719,14.4974,241.42,241.28,24.71195868]
[1732173880923,4.1421,241.42,241.32,24.21195868]
[1732173881718,4.1421,241.42,241.31,9.2024]
[1732173882231,4.1418,241.44,241.31,9.2024]
[1732173883126,4.1418,241.44,241.31,8.7024]
[1732173883327,23.776884,241.46,241.29,0.5]
[1732173883540,23.776884,241.46,241.29,2.9865]
[1732173883714,23.776884,241.46,241.27,4.37799865]
[1732173883912,23.776884,241.46,241.28,7.98538608]
[1732173884108,23.776884,241.46,241.27,6.86479865]
[1732173884304,36.236884,241.46,241.28,3.54905881]
[1732173884606,23.776884,241.46,241.26,6.36489865]
[1732173885424,23.776884,241.44,241.28,0.5]
[1732173886026,4.1416,241.45,241.3,1.0]
[1732173887517,4.1419,241.43,241.31,2.4864]
[1732173887923,23.776884,241.42,241.3,9.2026]
[1732173888927,4.1423,241.41,241.3,8.7026]
[1732173889917,4.1423,241.41,241.3,6.2161]
[1732173890812,4.1423,241.41,241.3,8.7026]
[1732173892034,23.776884,241.4,241.26,1.0]
[1732173892331,23.776884,241.4,241.26,3.4868]
[1732173892711,4.1423,241.41,241.29,1.0]
[1732173893524,23.776884,241.44,241.29,1.0]
[1732173893837,23.776884,241.44,241.3,2.4865]
[1732173893838,27.918684,241.44,241.3,2.4865]
[1732173897111,38.273184,241.44,241.3,2.4865]
[1732173897312,23.776884,241.42,241.3,2.4865]
[1732173898040,23.776884,241.42,241.27,2.4867]
[1732173898212,23.776884,241.42,241.28,0.5]
[1732173899227,2.4865,241.43,241.28,0.5]
[1732173899228,23.776884,241.4,241.28,0.5]
[1732173900538,23.776884,241.38,241.28,0.5]
[1732173901520,4.143,241.37,241.28,2.9867]
[1732173902825,4.143,241.37,241.28,9.2035]
[1732173904223,23.776884,241.41,241.3,0.5]
[1732173904422,4.1421,241.42,241.3,0.5]
[1732173904613,4.1421,241.42,241.32,0.5]
[1732173905738,4.1421,241.42,241.32,2.9862]
[1732173906030,23.776884,241.41,241.32,0.5]
[1732173907740,4.1421,241.42,241.32,0.5]
[1732173908239,4.1421,241.42,241.31,8.7024]
[1732173909223,23.776884,241.41,241.29,2.4865]
[1732173910840,4.1425,241.4,241.29,8.703]
[1732173911047,4.1425,241.4,241.29,6.2165]
[1732173911048,23.776884,241.39,241.29,6.2165]
[1732173912523,23.776884,241.39,241.28,0.5]
[1732173912939,4.1428,241.38,241.28,0.5]
[1732173913142,23.776884,241.37,241.28,0.5]
[1732173914553,23.776884,241.37,241.22,0.5]
[1732173914554,23.776884,241.37,241.2,12.9377]
[1732173914724,29.96876605,241.37,241.22,0.5]
[1732173915143,23.776884,241.35,241.22,0.5]
[1732173915340,23.776884,241.35,241.21,6.2186]
[1732173915525,23.776884,241.35,241.24,0.5]
[1732173915842,23.776884,241.35,241.21,9.206]
[1732173916940,4.1435,241.34,241.21,9.206]
[1732173917156,23.776884,241.33,241.21,9.206]
[1732173918230,27.920184,241.35,241.21,9.206]
[1732173921656,27.920184,241.35,241.21,8.706]
[1732173921839,27.920184,241.35,241.22,2.9873]
[1732173923261,27.920184,241.35,241.22,2.4873]
[1732173923837,27.920184,241.35,241.22,2.9873]
[1732173924341,27.920184,241.35,241.22,2.4873]
[1732173924554,27.920184,241.35,241.22,2.9873]
[1732173925754,27.920184,241.35,241.21,6.2186]
[1732173925941,27.920184,241.35,241.21,8.706]
[1732173926139,27.920184,241.35,241.22,0.5]
[1732173926552,38.278584,241.35,241.21,6.2186]
[1732173927830,38.278584,241.35,241.21,8.706]
[1732173928261,12.111,241.34,241.16,6.2199]
[1732173928440,29.96876605,241.33,241.16,6.2199]
[1732173928641,23.776884,241.33,241.17,0.5]
[1732173929445,23.776884,241.31,241.16,8.7077]
[1732173929642,23.776884,241.31,241.17,0.5]
[1732173930454,23.776884,241.29,241.17,2.9878]
[1732173931338,23.776884,241.29,241.16,6.2199]
[1732173931339,23.776884,241.27,241.16,6.7199]
[1732173931840,23.776884,241.27,241.16,6.2199]
[1732173932043,23.776884,241.27,241.16,6.7199]
[1732173932448,4.1449,241.26,241.16,9.2078]
[1732173932651,4.1449,241.26,241.16,8.7078]
[1732173933051,23.776884,241.25,241.16,8.7078]
[1732173933444,23.776884,241.25,241.16,6.2199]
[1732173933769,4.1452,241.24,241.16,6.2199]
[1732173934164,4.1452,241.24,241.16,6.7199]
[1732173934484,4.1452,241.24,241.16,6.2199]
[1732173934648,23.776884,241.23,241.13,2.4882]
[1732173934850,23.776884,241.23,241.11,9.2093]
[1732173935361,23.776884,241.23,241.11,6.7209]
[1732173935563,23.776884,241.21,241.11,6.7209]
[1732173936054,23.776884,241.21,241.11,9.2093]
[1732173937463,23.776884,241.23,241.11,9.2093]
[1732173937763,27.922284,241.23,241.11,9.2093]
[1732173937968,27.922284,241.23,241.11,6.7209]
[1732173938568,38.285784,241.23,241.09,0.5]
[1732173939250,38.285784,241.23,241.09,2.9886]
[1732173941069,38.285784,241.23,241.07,2.9888]
[1732173941862,50.745784,241.23,241.07,0.5]
[1732173942065,45.18157196,241.5,241.32,0.5]
[1732173942264,32.2404,241.5,241.32,0.5]
[1732173942463,32.2404,241.5,241.34,0.5]
[1732173942697,32.2404,241.5,241.36,0.5]
[1732173942996,32.2404,241.5,241.38,0.5]
[1732173943291,3.34013318,241.54,241.43,0.5]
[1732173943292,7.48023318,241.54,241.43,0.5]
[1732173943460,4.1401,241.54,241.38,1.0]
[1732173943663,4.1401,241.54,241.39,0.5]
[1732173943863,4.1401,241.54,241.41,0.5]
[1732173944273,4.1401,241.54,241.38,0.5]
[1732173944475,4.1397,241.56,241.41,0.5]
[1732173944674,4.1397,241.56,241.38,0.5]
[1732173944875,2.4857,241.55,241.41,0.5]
[1732173945290,2.4857,241.55,241.39,0.5]
[1732173945775,4.1401,241.54,241.39,0.5]
[1732173947380,4.1401,241.54,241.35,2.4859]
[1732173947890,36.236884,241.53,241.34,1.0]
[1732173948709,36.236884,241.53,241.34,0.5]
[1732173949167,36.236884,241.53,241.33,6.2155]
[1732173949372,36.236884,241.51,241.33,6.2155]
[1732173949588,36.236884,241.51,241.32,0.5]
[1732173949890,36.236884,241.51,241.27,6.217]
[1732173949891,36.236884,241.51,241.27,8.7038]
[1732173950098,61.146884,241.51,241.27,8.7038]
[1732173950690,61.146884,241.51,241.27,6.217]
[1732173950983,61.146884,241.51,241.24,0.5]
[1732173951164,61.146884,241.49,241.22,2.9872]
[1732173951591,61.146884,241.47,241.22,2.9872]
[1732173952090,36.236884,241.45,241.22,2.9872]
[1732173952797,36.236884,241.43,241.21,6.2185]
[1732173953096,61.146884,241.43,241.22,0.5]
[1732173953673,61.146884,241.43,241.2,0.5]
[1732173953873,61.146884,241.43,241.19,2.9875]
[1732173954079,12.46,241.41,241.22,0.5]
[1732173954289,12.46,241.37,241.22,0.5]
[1732173954480,36.236884,241.36,241.2,0.5]
[1732173956493,4.1433,241.35,241.2,0.5]
[1732173956895,4.1433,241.35,241.22,0.5]
[1732173957402,4.1433,241.35,241.2,0.5]
[1732173958606,4.1433,241.35,241.22,8.7056]
[1732173958901,3.23475446,241.4,241.29,0.5]
[1732173959075,4.1416,241.45,241.29,0.5]
[1732173960492,7.44567997,241.45,241.29,0.5]
[1732173960687,23.776884,241.44,241.26,2.9868]
[1732173960880,23.776884,241.44,241.29,0.5]
[1732173961501,23.776884,241.44,241.26,2.9868]
[1732173961697,23.776884,241.44,241.29,0.5]
[1732173961899,4.1419,241.43,241.29,0.5]
[1732173963200,4.1419,241.43,241.26,6.7173]
[1732173963416,4.1419,241.43,241.29,0.5]
[1732173963595,4.1419,241.43,241.27,2.4867]
[1732173964103,4.1419,241.43,241.29,0.5]
[1732173965012,14.4968,241.43,241.29,0.5]
[1732173965209,4.1419,241.43,241.33,0.5]
[1732173965507,4.1409,241.49,241.37,0.5]
[1732173966516,14.4909,241.53,241.37,0.5]
[1732173966812,23.776884,241.52,241.34,6.2151]
[1732173967017,23.776884,241.52,241.37,0.5]
[1732173967393,23.776884,241.52,241.34,8.7012]
[1732173967709,23.776884,241.52,241.34,0.5]
[1732173968008,36.236884,241.52,241.34,0.5]
[1732173968495,36.236884,241.52,241.32,0.5]
[1732173968695,23.776884,241.5,241.32,0.5]
[1732173970694,23.776884,241.48,241.32,0.5]
[1732173973822,23.776884,241.46,241.32,0.5]
[1732173974909,14.4957,241.45,241.28,0.5]
[1732173975113,23.776884,241.44,241.28,0.5]
[1732173976419,36.236884,241.44,241.26,0.5]
[1732173977303,14.4968,241.43,241.26,0.5]
[1732173977617,23.776884,241.41,241.26,0.5]
[1732173977818,23.776884,241.42,241.26,0.5]
[1732173978114,36.236884,241.42,241.24,0.5]
[1732173978610,61.146884,241.42,241.19,7.8424]
[1732173978826,12.46,241.38,241.17,0.5]
[1732173979007,12.46,241.34,241.15,0.5]
[1732173979199,24.91,241.39,241.15,0.5]
[1732173979200,23.776884,241.31,241.15,0.5]
[1732173979395,23.776884,241.31,241.14,0.5]
[1732173979603,23.776884,241.31,241.16,0.5]
[1732173980018,14.5034,241.32,241.16,0.5]
[1732173981108,4.1438,241.32,241.21,0.5]
[1732173981414,10.3576,241.37,241.23,0.5]
[1732173981918,2.4874,241.36,241.23,0.5]
[1732173982825,4.1433,241.35,241.23,0.5]
[1732173984311,4.1433,241.35,241.21,9.206]
[1732173984520,4.1433,241.35,241.23,0.5]
[1732173985415,14.5017,241.35,241.18,0.5]
[1732173985714,14.5017,241.35,241.2,0.5]
[1732173985921,23.776884,241.34,241.18,0.5]
[1732173986231,23.776884,241.34,241.09,0.5]
[1732173986232,61.146884,241.34,241.09,0.5]
[1732173986598,23.776884,241.32,241.09,0.5]
[1732173987122,43.776884,241.34,241.08,0.5]
[1732173987328,23.776884,241.32,241.11,0.5]
[1732173987695,23.776884,241.32,241.13,0.5]
[1732173987897,23.776884,241.32,241.17,0.5]
[1732173988823,14.5041,241.31,241.14,0.5]
[1732173989021,23.776884,241.3,241.16,0.5]
[1732173989230,23.776884,241.3,241.12,2.4883]
[1732173989231,23.776884,241.3,241.14,0.5]
[1732173990015,23.776884,241.3,241.13,0.5]
[1732173990215,23.776884,241.3,241.11,0.5]
[1732173990407,23.776884,241.3,241.09,0.5]
[1732173990607,23.776884,241.3,241.12,0.5]
[1732173990802,31.6622,241.29,241.12,0.5]
[1732173990998,31.6622,241.29,241.07,2.4888]
[1732173990999,59.005584,241.28,241.09,0.5]
[1732173991189,59.005584,241.28,241.12,0.5]
[1732173992095,59.005584,241.28,241.1,0.5]
[1732173992296,59.005584,241.28,241.08,2.9887]
[1732173992297,59.005584,241.28,241.12,0.5]
[1732173992519,59.005584,241.28,241.13,0.5]
[1732173992901,59.005584,241.28,241.1,2.9885]
[1732173993102,59.005584,241.28,241.14,0.5]
[1732173993405,59.005584,241.28,241.12,0.5]
[1732173993610,61.84083646,241.28,241.12,0.5]
[1732173994530,23.776884,241.26,241.08,0.5]
[1732173995336,23.776884,241.26,241.05,7.3424]
[1732173995500,23.776884,241.26,241.04,0.5]
[1732173996025,23.776884,241.26,241.02,31.87255761]
[1732173996026,61.146884,241.26,241.02,31.87255761]
[1732173996193,65.23251081,241.26,241.02,31.87255761]
[1732173996399,23.776884,241.23,241.02,31.87255761]
[1732173996618,23.776884,241.21,241.02,31.87255761]
[1732173997223,23.776884,241.19,241.02,31.87255761]
[1732173997606,36.236884,241.19,241.02,31.87255761]
[1732173997919,12.0836,241.18,241.02,31.87255761]
[1732173998106,23.776884,241.17,241.02,31.87255761]
[1732173998304,36.236884,241.17,240.96,0.5]
[1732173998506,14.5131,241.16,240.96,0.5]
[1732173998718,23.776884,241.15,240.96,0.5]
[1732174000032,35.2491,241.14,240.96,0.5]
[1732174000228,23.776884,241.13,240.96,0.5]
[1732174000805,23.776884,241.13,240.92,0.5]
[1732174001208,23.776884,241.13,240.94,0.5]
[1732174002118,35.252,241.12,240.94,0.5]
[1732174002340,23.776884,241.11,240.94,0.5]
[1732174002916,23.776884,241.11,240.96,0.5]
[1732174003128,14.5155,241.12,241.0,0.5]
[1732174004213,4.1467,241.15,241.02,0.5]